bitfinex/quotes_BTCUSD_20251117
["timestamp","ask_amount","ask_price","bid_price","bid_amount"]
[1763396913326,20.41689301,93517.0,93516.0,2.58761193]
[1763396913940,19.70591233,93517.0,93516.0,2.58361193]
[1763396914166,19.64160673,93517.0,93516.0,2.58361193]
[1763396914363,19.6084069,93517.0,93516.0,2.47071193]
[1763396914550,19.5762541,93517.0,93516.0,2.49684504]
[1763396914737,19.2864355,93517.0,93516.0,2.47071193]
[1763396914933,18.75676153,93517.0,93516.0,2.47071193]
[1763396915211,18.72460873,93517.0,93516.0,2.47471193]
[1763396915391,18.24115234,93517.0,93516.0,2.52471193]
[1763396915615,18.10652934,93517.0,93516.0,2.54684504]
[1763396915821,17.80910546,93517.0,93516.0,2.63861193]
[1763396916021,17.30510461,93517.0,93516.0,2.63861193]
[1763396916235,17.21841869,93517.0,93516.0,2.66474504]
[1763396916439,11.42854269,93517.0,93516.0,0.9154026]
[1763396916647,8.21908491,93517.0,93516.0,0.9204026]
[1763396916854,5.31746293,93517.0,93516.0,1.00052887]
[1763396917062,4.13347518,93517.0,93516.0,1.08033437]
[1763396917320,3.9279998,93517.0,93516.0,3.08033437]
[1763396917535,0.04,93588.0,93582.0,2.0]
[1763396917738,0.00011809,93609.0,93605.0,0.678893]
[1763396917955,0.00011809,93609.0,93600.0,0.678893]
[1763396918810,0.0005597,93609.0,93600.0,0.678893]
[1763396919041,0.0005597,93609.0,93601.0,0.678893]
[1763396919257,0.00044161,93609.0,93601.0,0.678893]
[1763396919806,0.00044161,93609.0,93606.0,0.678893]
[1763396920005,0.00044161,93609.0,93606.0,0.04341874]
[1763396920213,0.00044161,93609.0,93601.0,0.678893]
[1763396920425,0.00044161,93609.0,93600.0,0.678893]
[1763396921064,0.00044161,93609.0,93601.0,0.678893]
[1763396921271,0.04374,93608.0,93601.0,0.681893]
[1763396921494,0.00044161,93609.0,93602.0,0.678893]
[1763396921745,0.00044161,93609.0,93601.0,0.678893]
[1763396921746,0.04374,93608.0,93601.0,0.678893]
[1763396921980,0.04374,93608.0,93600.0,0.012]
[1763396921981,0.35134,93602.0,93600.0,0.012]
[1763396922183,0.07208,93601.0,93600.0,0.01]
[1763396923301,0.02834,93601.0,93600.0,0.01]
[1763396923747,0.07208,93601.0,93600.0,0.01]
[1763396924438,0.07978005,93613.0,93600.0,0.01]
[1763396924666,0.67063447,93610.0,93601.0,0.300993]
[1763396925952,0.67063447,93610.0,93602.0,0.300993]
[1763396926390,0.0002,93610.0,93601.0,0.300993]
[1763396926853,0.02834,93602.0,93601.0,0.300993]
[1763396927326,0.07208,93602.0,93601.0,0.300993]
[1763396927846,0.07208,93602.0,93601.0,0.301993]
[1763396928116,0.00044161,93609.0,93601.0,0.300993]
[1763396928363,0.04374,93608.0,93602.0,0.300993]
[1763396928790,0.02834,93603.0,93602.0,0.300993]
[1763396929021,0.00044161,93609.0,93601.0,0.300993]
[1763396929478,0.00044161,93609.0,93602.0,0.300993]
[1763396930614,0.00044161,93609.0,93601.0,0.001]
[1763396930615,0.00044161,93609.0,93601.0,0.300993]
[1763396931046,0.00044161,93609.0,93603.0,0.300993]
[1763396931259,0.00044161,93609.0,93601.0,0.300993]
[1763396931484,0.00044161,93609.0,93602.0,0.001]
[1763396931694,0.00044161,93609.0,93603.0,0.300993]
[1763396931910,0.00044161,93609.0,93600.0,0.01999999]
[1763396931911,0.00044161,93609.0,93601.0,0.300993]
[1763396932193,0.02834,93602.0,93601.0,0.301993]
[1763396932405,0.02834,93602.0,93601.0,0.300993]
[1763396933084,0.07208,93602.0,93601.0,0.300993]
[1763396933775,0.06708,93602.0,93601.0,0.300993]
[1763396934388,0.06708,93602.0,93601.0,0.301993]
[1763396934861,0.67043447,93566.0,93554.0,0.02850814]
[1763396935132,0.04398,93555.0,93541.0,0.02288524]
[1763396935380,0.04398,93555.0,93534.0,0.02309]
[1763396935381,0.67043447,93551.0,93534.0,0.02309]
[1763396935583,0.67043447,93560.0,93542.0,0.02309]
[1763396935792,0.01683649,93551.0,93540.0,0.00999999]
[1763396936013,0.67043447,93552.0,93540.0,0.00999999]
[1763396936229,0.00044107,93551.0,93540.0,0.00999999]
[1763396938348,0.49153025,93550.0,93540.0,0.01099999]
[1763396939291,0.49153025,93550.0,93540.0,0.001]
[1763396939509,0.49153025,93550.0,93540.0,0.00999999]
[1763396939752,0.01958174,93549.0,93540.0,0.00999999]
[1763396939961,0.49153025,93550.0,93526.0,0.02309]
[1763396940241,0.67043447,93536.0,93526.0,0.02309]
[1763396940438,0.67043447,93536.0,93530.0,0.00999999]
[1763396940668,0.00044107,93551.0,93540.0,0.00999999]
[1763396940874,0.0381,93543.0,93540.0,0.001]
[1763396941080,0.67043447,93550.0,93540.0,0.01099999]
[1763396941286,0.67043447,93550.0,93540.0,0.00999999]
[1763396941495,0.67043447,93550.0,93541.0,0.04639]
[1763396941698,0.67087554,93551.0,93541.0,0.04639]
[1763396941939,0.67087554,93551.0,93541.0,0.14097]
[1763396942156,0.00044107,93551.0,93550.0,0.06396]
[1763396942387,0.00044107,93551.0,93550.0,0.15854]
[1763396942622,0.01686181,93556.0,93550.0,0.18148509]
[1763396942846,0.67043447,93570.0,93541.0,0.04639]
[1763396942847,0.67043447,93570.0,93560.0,0.01999998]
[1763396943070,0.02193,93595.0,93580.0,0.00999999]
[1763396943315,0.01959221,93594.0,93580.0,0.00999999]
[1763396943566,0.01959221,93593.0,93580.0,0.00999999]
[1763396943782,0.01723649,93595.0,93590.0,0.00999999]
[1763396944221,0.01723649,93595.0,93569.0,0.04639]
[1763396944443,0.67043447,93579.0,93570.0,0.03294293]
[1763396944678,0.01723649,93595.0,93590.0,0.00999999]
[1763396944901,0.01723649,93595.0,93594.0,0.04022]
[1763396945583,0.01723649,93595.0,93588.0,0.04022]
[1763396945824,0.01723649,93595.0,93590.0,0.00999999]
[1763396946248,0.01723649,93595.0,93588.0,0.04022]
[1763396946461,0.01723649,93595.0,93590.0,0.00999999]
[1763396946893,0.01723649,93595.0,93590.0,0.10457999]
[1763396947117,0.01723649,93595.0,93590.0,0.00999999]
[1763396947336,0.01723649,93595.0,93580.0,0.00999999]
[1763396947547,0.01723649,93595.0,93590.0,0.00999999]
[1763396948333,0.01723649,93595.0,93594.0,0.001]
[1763396948584,0.0002,93630.0,93594.0,0.06496]
[1763396948850,0.00025652,93610.0,93609.0,0.06396]
[1763396949064,0.00025652,93610.0,93609.0,0.20493]
[1763396949291,0.00025652,93610.0,93609.0,0.34079099]
[1763396949520,0.00025652,93610.0,93609.0,0.22789099]
[1763396949734,0.00025652,93610.0,93609.0,0.27130973]
[1763396950174,0.00025652,93610.0,93609.0,0.27330973]
[1763396950419,0.00025652,93610.0,93609.0,0.25858935]
[1763396950678,0.00025652,93610.0,93609.0,0.22989099]
[1763396951106,0.323,93618.0,93609.0,0.02496099]
[1763396951309,0.323,93618.0,93609.0,0.002]
[1763396951731,0.01957642,93617.0,93609.0,0.002]
[1763396951939,0.01957642,93616.0,93609.0,0.002]
[1763396952154,0.01957642,93615.0,93609.0,0.002]
[1763396952361,0.323,93618.0,93609.0,0.002]
[1763396952592,0.01957472,93617.0,93609.0,0.005]
[1763396952812,0.01957472,93616.0,93610.0,0.00999999]
[1763396953041,0.323,93618.0,93610.0,0.00999999]
[1763396953273,0.01958213,93617.0,93610.0,0.00999999]
[1763396953493,0.323,93618.0,93610.0,0.00999999]
[1763396953494,0.01958472,93616.0,93610.0,0.10457999]
[1763396953719,0.323,93618.0,93610.0,0.10457999]
[1763396953940,0.01958736,93617.0,93610.0,0.10457999]
[1763396954164,0.01958736,93616.0,93610.0,0.10457999]
[1763396954386,0.01958736,93615.0,93601.0,0.04639]
[1763396954614,0.67043447,93611.0,93601.0,0.04639]
[1763396954833,0.67043447,93611.0,93609.0,0.001]
[1763396955020,0.67043447,93619.0,93601.0,0.14097]
[1763396955277,0.67043447,93611.0,93602.0,0.09458]
[1763396955573,0.67043447,93611.0,93610.0,0.001]
[1763396955774,0.67043447,93611.0,93610.0,0.06396]
[1763396955999,0.67043447,93620.0,93610.0,0.15854]
[1763396956219,0.01958572,93619.0,93610.0,0.15854]
[1763396956440,0.01958572,93618.0,93610.0,0.15854]
[1763396956667,0.67043447,93620.0,93610.0,0.15854]
[1763396956668,0.01958572,93617.0,93610.0,0.15854]
[1763396956945,0.01958572,93616.0,93601.0,0.04639]
[1763396957172,0.67043447,93611.0,93594.0,0.04639]
[1763396957386,0.67043447,93604.0,93594.0,0.14490652]
[1763396957624,0.67043447,93604.0,93594.0,0.04644652]
[1763396957845,0.01019999,93630.0,93594.0,0.04644652]
[1763396957846,0.01019999,93630.0,93603.0,0.06179]
[1763396958068,0.67043447,93613.0,93603.0,0.06179]
[1763396958288,0.01957759,93612.0,93603.0,0.06179]
[1763396958565,0.01957759,93612.0,93604.0,0.09846]
[1763396958818,0.67043447,93613.0,93611.0,0.10864]
[1763396959255,0.67043447,93621.0,93611.0,0.04685]
[1763396959462,0.01957918,93620.0,93603.0,0.001]
[1763396959691,0.67043447,93613.0,93598.0,0.09846]
[1763396959935,0.01957918,93612.0,93598.0,0.09846]
[1763396960200,0.67043447,93613.0,93611.0,0.04785]
[1763396960417,0.67043447,93621.0,93611.0,0.10964]
[1763396960641,0.67043447,93621.0,93612.0,0.06179]
[1763396960642,0.01957936,93620.0,93612.0,0.06179]
[1763396960876,0.67043447,93621.0,93611.0,0.14631]
[1763396960877,0.01957936,93619.0,93611.0,0.14631]
[1763396961102,0.01957936,93618.0,93611.0,0.14631]
[1763396961323,0.67043447,93621.0,93611.0,0.04685]
[1763396961556,0.67043447,93621.0,93620.0,0.06179]
[1763396961797,0.67043447,93621.0,93612.0,0.09846]
[1763396961798,0.01957893,93621.0,93612.0,0.09846]
[1763396962009,0.01957893,93620.0,93611.0,0.04685]
[1763396962232,0.01957893,93619.0,93612.0,0.1479]
[1763396962497,0.67043447,93622.0,93612.0,0.1479]
[1763396962714,0.67043447,93622.0,93611.0,0.04685]
[1763396962715,0.0002,93630.0,93621.0,0.06179]
[1763396962920,0.0002,93630.0,93620.0,0.00999999]
[1763396962921,0.0002,93630.0,93629.0,0.06179]
[1763396963163,0.0002,93630.0,93629.0,0.16025]
[1763396964037,0.0002,93630.0,93617.0,0.09846]
[1763396964252,0.67043447,93627.0,93611.0,0.04685]
[1763396964485,0.01659807,93633.0,93629.0,0.06179]
[1763396964741,0.0002,93640.0,93632.0,0.06179]
[1763396964945,0.67076668,93640.0,93639.0,0.06179]
[1763396965169,0.67076668,93640.0,93630.0,0.00999999]
[1763396965170,0.00033221,93640.0,93630.0,0.00999999]
[1763396965391,0.67076668,93640.0,93630.0,0.00999999]
[1763396965642,0.68769186,93640.0,93631.0,0.09846]
[1763396965887,0.67076668,93640.0,93631.0,0.09846]
[1763396966107,0.68764633,93640.0,93631.0,0.09846]
[1763396966345,0.00033221,93640.0,93639.0,0.06179]
[1763396966856,0.00033221,93640.0,93631.0,0.09846]
[1763396967098,0.00033221,93640.0,93639.0,0.06179]
[1763396967727,0.00033221,93640.0,93639.0,0.10864]
[1763396968164,0.00089601,93640.0,93632.0,0.04685]
[1763396968388,0.00033221,93640.0,93633.0,0.09846]
[1763396969047,0.00033221,93640.0,93639.0,0.001]
[1763396969488,0.05147221,93640.0,93614.0,0.1129]
[1763396969734,0.05147221,93640.0,93584.0,0.04341874]
[1763396969735,0.0103322,93640.0,93633.0,0.001]
[1763396970167,0.0103322,93640.0,93633.0,0.048]
[1763396970168,0.00033221,93640.0,93633.0,0.048]
[1763396970459,0.00033221,93640.0,93634.0,0.09682]
[1763396970670,0.00033221,93640.0,93633.0,0.048]
[1763396971339,0.00033221,93640.0,93639.0,0.001]
[1763396971758,0.00033221,93640.0,93633.0,0.048]
[1763396971970,0.00033221,93640.0,93620.0,0.00999999]
[1763396972234,0.00033221,93640.0,93633.0,0.001]
[1763396972441,0.00033221,93640.0,93620.0,0.00999999]
[1763396972442,0.01964179,93639.0,93620.0,0.10681999]
[1763396972662,0.00033221,93640.0,93630.0,0.00999999]
[1763396972873,0.9824365,93640.0,93639.0,0.10843]
[1763396973105,0.00033221,93640.0,93639.0,0.10843]
[1763396973331,0.01998147,93640.0,93639.0,0.10943]
[1763396973545,0.01998147,93640.0,93639.0,0.049]
[1763396974038,0.02054527,93640.0,93639.0,0.049]
[1763396974459,0.02054527,93640.0,93639.0,0.048]
[1763396974879,0.02054527,93640.0,93639.0,0.10843]
[1763396975301,0.00089601,93640.0,93639.0,0.20525]
[1763396975520,0.00089601,93640.0,93639.0,0.20625]
[1763396975735,0.00089601,93640.0,93639.0,0.20525]
[1763396976167,0.00089601,93640.0,93639.0,0.20625]
[1763396976380,0.00089601,93640.0,93639.0,0.20525]
[1763396976591,0.00089601,93640.0,93639.0,0.22828919]
[1763396977860,0.00089601,93640.0,93639.0,0.34118919]
[1763396978280,0.00089601,93640.0,93639.0,0.34218919]
[1763396978490,0.00089601,93640.0,93639.0,0.34118919]
[1763396978915,0.00089601,93640.0,93639.0,0.34318919]
[1763396979830,0.0002,93680.0,93639.0,0.34318919]
[1763396979831,0.0002,93680.0,93651.0,0.1129]
[1763396980041,0.0002,93710.0,93700.0,0.16631873]
[1763396980287,0.01967607,93708.0,93700.0,0.16631873]
[1763396980491,0.01967607,93707.0,93702.0,0.1129]
[1763396980707,0.00144087,93709.0,93706.0,0.10843]
[1763396980940,0.01019999,93740.0,93710.0,0.00999999]
[1763396981164,0.01965792,93739.0,93710.0,0.00999999]
[1763396981373,0.98210429,93730.0,93720.0,0.00999999]
[1763396981807,0.00033225,93740.0,93721.0,0.09682]
[1763396982019,0.00033225,93740.0,93739.0,0.06043]
[1763396982469,0.00033225,93740.0,93739.0,0.15725]
[1763396983554,0.00033225,93740.0,93739.0,0.15825]
[1763396984606,0.00033225,93740.0,93739.0,0.15725]
[1763396985031,0.00033225,93740.0,93739.0,0.15825]
[1763396985674,0.00033225,93740.0,93739.0,0.20166874]
[1763396985882,0.00033225,93740.0,93739.0,0.22344417]
[1763396986144,0.00033225,93740.0,93739.0,0.25422624]
[1763396986360,0.00033225,93740.0,93739.0,0.22344417]
[1763396987006,0.00033225,93740.0,93739.0,0.20066874]
[1763396987865,0.00033225,93740.0,93739.0,0.20266874]
[1763396988070,0.00033225,93740.0,93739.0,0.20066874]
[1763396988486,0.00033225,93740.0,93739.0,0.20366874]
[1763396989343,0.00033225,93740.0,93739.0,0.16025]
[1763396990204,0.0002,93760.0,93739.0,0.16025]
[1763396990205,0.98210429,93760.0,93739.0,0.16025]
[1763396990420,0.98210429,93750.0,93739.0,0.16025]
[1763396991060,0.98210429,93750.0,93739.0,0.15725]
[1763396991286,0.98210429,93750.0,93724.0,0.09682]
[1763396991507,0.98210429,93740.0,93739.0,0.003]
[1763396991728,0.98210429,93740.0,93724.0,0.00013225]
[1763396991729,0.00281745,93740.0,93724.0,0.00013225]
[1763396991945,0.98210429,93734.0,93724.0,0.00013225]
[1763396992156,0.00239521,93725.0,93724.0,0.00013225]
[1763396992590,0.05132521,93725.0,93724.0,0.00013225]
[1763396992802,0.00239521,93725.0,93724.0,0.00013225]
[1763396993033,0.05132521,93725.0,93724.0,0.00013225]
[1763396993479,0.00239521,93725.0,93724.0,0.00013225]
[1763396993949,0.05132521,93725.0,93724.0,0.00013225]
[1763396994380,0.05132521,93725.0,93724.0,0.00113225]
[1763396994597,0.05132521,93725.0,93724.0,0.00013225]
[1763396995032,0.05132521,93725.0,93724.0,0.00113225]
[1763396995266,0.05132521,93725.0,93724.0,0.00013225]
[1763396995722,0.05132521,93725.0,93680.0,0.00999999]
[1763396995723,0.323,93724.0,93680.0,0.00999999]
[1763396995941,0.323,93699.0,93680.0,0.00999999]
[1763396996190,0.00115585,93681.0,93677.0,0.048]
[1763396996401,0.33891719,93699.0,93680.0,0.00999999]
[1763396996612,0.323,93689.0,93665.0,0.09682]
[1763396996837,0.03349,93698.0,93680.0,0.05799999]
[1763396997487,0.03362193,93698.0,93681.0,0.048]
[1763396997913,0.00013193,93698.0,93682.0,0.09682]
[1763396998141,0.00013193,93698.0,93697.0,0.06043]
[1763396998559,0.00013193,93698.0,93697.0,0.15725]
[1763396998770,0.00999999,93770.0,93697.0,0.06043]
[1763396998771,0.07874735,93728.0,93697.0,0.06043]
[1763396998980,0.98210429,93720.0,93697.0,0.06043]
[1763396999192,0.98210429,93720.0,93691.0,0.09682]
[1763397000508,0.01572274,93728.0,93692.0,0.09623]
[1763397000713,0.01572274,93728.0,93697.0,0.002]
[1763397000918,0.01572274,93728.0,93700.0,0.00999999]
[1763397001400,0.10416178,93718.0,93682.0,0.04341874]
[1763397001613,0.03348,93727.0,93681.0,0.048]
[1763397001614,0.03348,93701.0,93690.0,0.00999999]
[1763397002049,0.00143763,93691.0,93683.0,0.09623]
[1763397002263,0.03348,93701.0,93683.0,0.09623]
[1763397002264,0.03348,93701.0,93690.0,0.00999999]
[1763397002479,0.03348,93720.0,93690.0,0.00999999]
[1763397002721,0.03348,93709.0,93683.0,0.09623]
[1763397002945,0.03348,93709.0,93670.0,0.00999999]
[1763397002946,0.01635,93684.0,93670.0,0.00999999]
[1763397003154,0.98210429,93680.0,93660.0,0.05799999]
[1763397003363,0.98210429,93680.0,93670.0,0.00044087]
[1763397003574,0.98210429,93690.0,93670.0,0.00044087]
[1763397003790,0.03348,93709.0,93671.0,0.09623]
[1763397004008,0.98210429,93690.0,93671.0,0.09623]
[1763397004224,0.10416178,93703.0,93670.0,0.01044086]
[1763397004225,0.98210429,93681.0,93670.0,0.00044087]
[1763397004673,0.98210429,93680.0,93670.0,0.00244087]
[1763397004898,0.98210429,93680.0,93670.0,0.00044087]
[1763397005128,0.98210429,93690.0,93670.0,0.00044087]
[1763397005334,0.10416178,93703.0,93671.0,0.001]
[1763397005335,0.98210429,93680.0,93671.0,0.001]
[1763397005552,0.03348,93672.0,93671.0,0.001]
[1763397005987,1.01558429,93690.0,93671.0,0.001]
[1763397006199,0.98210429,93690.0,93671.0,0.001]
[1763397006443,0.98210429,93700.0,93671.0,0.001]
[1763397006669,0.10416178,93703.0,93670.0,0.00044087]
[1763397006670,0.98210429,93690.0,93670.0,0.00044087]
[1763397006889,0.98210429,93690.0,93670.0,0.01044086]
[1763397007097,0.98210429,93690.0,93670.0,0.00044087]
[1763397007532,0.98210429,93690.0,93670.0,0.01044086]
[1763397007533,0.00124039,93684.0,93670.0,0.01044086]
[1763397007743,0.98210429,93690.0,93670.0,0.00044087]
[1763397008195,0.98210429,93680.0,93670.0,0.00044087]
[1763397008409,0.03348,93702.0,93670.0,0.00044087]
[1763397008628,0.98210429,93690.0,93670.0,0.00044087]
[1763397009771,0.10416178,93696.0,93670.0,0.00044087]
[1763397009772,0.98210429,93680.0,93670.0,0.00044087]
[1763397010204,0.10416178,93679.0,93670.0,0.00044087]
[1763397010414,0.98210429,93680.0,93670.0,0.00044087]
[1763397010626,0.03348,93695.0,93670.0,0.00044087]
[1763397010836,0.98210429,93690.0,93670.0,0.00044087]
[1763397011891,0.10416178,93681.0,93670.0,0.00044087]
[1763397012112,0.98210429,93680.0,93670.0,0.00044087]
[1763397012323,0.03348,93689.0,93670.0,0.00044087]
[1763397012536,0.01635,93671.0,93670.0,0.00044087]
[1763397012775,0.10416178,93681.0,93670.0,0.00044087]
[1763397012987,0.98210429,93690.0,93670.0,0.00044087]
[1763397013206,0.00087402,93671.0,93670.0,0.00044087]
[1763397013659,0.00087402,93671.0,93670.0,0.15707087]
[1763397015394,0.00087402,93671.0,93670.0,0.00044087]
[1763397015818,0.00087402,93671.0,93670.0,0.00144087]
[1763397016451,0.00087402,93671.0,93670.0,0.15807087]
[1763397016726,0.00087402,93671.0,93670.0,0.00144087]
[1763397017152,0.00087402,93671.0,93670.0,0.00044087]
[1763397017432,0.01715402,93671.0,93670.0,0.00044087]
[1763397017625,0.01715402,93671.0,93670.0,0.00144087]
[1763397017626,0.00087402,93671.0,93670.0,0.00144087]
[1763397017838,0.00087402,93671.0,93670.0,0.00044087]
[1763397018051,0.05046402,93671.0,93670.0,0.00044087]
[1763397018683,0.0368161,93671.0,93670.0,0.00044087]
[1763397018889,0.0700561,93671.0,93670.0,0.00044087]
[1763397019095,0.0204661,93671.0,93670.0,0.00144087]
[1763397019352,0.02049464,93671.0,93670.0,0.00144087]
[1763397019592,0.02049464,93671.0,93670.0,0.00044087]
[1763397019813,0.00087402,93671.0,93670.0,0.06267087]
[1763397020031,0.00087402,93671.0,93670.0,0.15918087]
[1763397020247,0.00087402,93671.0,93670.0,0.18215049]
[1763397020496,0.00087402,93671.0,93670.0,0.18315049]
[1763397020705,0.00087402,93671.0,93670.0,0.18215049]
[1763397020913,0.00087402,93671.0,93670.0,0.29505049]
[1763397021171,0.00087402,93671.0,93670.0,0.29604754]
[1763397021410,0.00087402,93671.0,93670.0,0.39703042]
[1763397021656,0.00087402,93671.0,93670.0,0.33946628]
[1763397021859,0.00087402,93671.0,93670.0,0.18314754]
[1763397022308,0.98210429,93700.0,93680.0,0.00999999]
[1763397022562,0.01969788,93699.0,93685.0,0.02875694]
[1763397022793,0.01969788,93698.0,93686.0,0.02296667]
[1763397022998,0.01969788,93697.0,93687.0,0.02296667]
[1763397023231,0.98210429,93710.0,93688.0,0.05172361]
[1763397023455,0.98210429,93710.0,93677.0,0.05751389]
[1763397023456,0.10416178,93694.0,93689.0,0.02296667]
[1763397023700,0.01970668,93693.0,93675.0,0.02875694]
[1763397023931,0.99845429,93685.0,93676.0,0.02301643]
[1763397024194,0.99845429,93685.0,93677.0,0.02301643]
[1763397024195,0.01970668,93684.0,93677.0,0.02301643]
[1763397024415,0.01970668,93683.0,93670.0,0.00044087]
[1763397024644,0.01970668,93682.0,93671.0,0.0230279]
[1763397024862,0.01970668,93681.0,93672.0,0.0230279]
[1763397025089,0.01970668,93681.0,93670.0,0.00044087]
[1763397025090,0.10416178,93679.0,93670.0,0.00044087]
[1763397025310,0.01970668,93678.0,93671.0,0.02303989]
[1763397025534,0.03341,93684.0,93672.0,0.02303989]
[1763397025535,0.01970668,93677.0,93672.0,0.02303989]
[1763397025781,0.01970668,93676.0,93670.0,0.00044087]
[1763397025998,0.01635,93671.0,93670.0,0.00044087]
[1763397026219,0.03605668,93671.0,93670.0,0.00044087]
[1763397026435,0.06929668,93671.0,93670.0,0.00044087]
[1763397026885,0.06929668,93671.0,93632.0,0.05751389]
[1763397026886,0.04341874,93670.0,93639.0,0.02875694]
[1763397027103,1.13107337,93649.0,93640.0,0.02304683]
[1763397027305,0.01970668,93648.0,93641.0,0.02304683]
[1763397027535,0.01970668,93648.0,93642.0,0.02304683]
[1763397027779,0.01970668,93648.0,93643.0,0.02304683]
[1763397028048,0.01970668,93647.0,93630.0,0.02875694]
[1763397028254,1.33968406,93640.0,93620.0,0.00999999]
[1763397028474,0.66984203,93640.0,93621.0,0.04341874]
[1763397028677,0.03341,93678.0,93639.0,0.10802]
[1763397028890,0.66984203,93649.0,93640.0,0.02303834]
[1763397029105,0.01970799,93648.0,93641.0,0.02303834]
[1763397029308,0.01970799,93647.0,93642.0,0.02303834]
[1763397029518,0.01970799,93646.0,93626.0,0.02879792]
[1763397029730,0.66984203,93636.0,93627.0,0.02303867]
[1763397029940,0.66984203,93636.0,93628.0,0.02303867]
[1763397030148,0.66984203,93636.0,93629.0,0.02303867]
[1763397030350,0.66984203,93636.0,93621.0,0.09358]
[1763397030351,0.00043997,93648.0,93635.0,0.11365]
[1763397030567,0.66984203,93640.0,93636.0,0.02303867]
[1763397030765,0.66984203,93646.0,93637.0,0.02303867]
[1763397031075,0.66984203,93646.0,93638.0,0.02303867]
[1763397031255,0.00043997,93648.0,93645.0,0.06593]
[1763397031485,0.00043997,93648.0,93636.0,0.09358]
[1763397031486,0.00043997,93648.0,93647.0,0.06593]
[1763397031742,0.00043997,93648.0,93647.0,0.08896867]
[1763397031939,0.00043997,93648.0,93647.0,0.02303867]
[1763397032823,0.66984203,93657.0,93635.0,0.04772]
[1763397033022,1.33968406,93645.0,93636.0,0.02303246]
[1763397033254,0.01969247,93644.0,93637.0,0.02303246]
[1763397033525,0.00033,93636.0,93618.0,0.02879792]
[1763397033723,0.04939,93619.0,93618.0,0.00013193]
[1763397033942,0.04939,93619.0,93594.0,0.02879792]
[1763397033943,0.06908247,93619.0,93594.0,0.02879792]
[1763397034148,0.01969247,93618.0,93595.0,0.02303714]
[1763397034360,0.66984203,93610.0,93596.0,0.11658702]
[1763397034581,0.01552434,93619.0,93600.0,0.00999999]
[1763397034791,0.66984203,93620.0,93609.0,0.06593]
[1763397035227,0.68508818,93620.0,93600.0,0.00999999]
[1763397035458,0.66984203,93611.0,93595.0,0.04772]
[1763397035666,0.66984203,93605.0,93596.0,0.02298929]
[1763397035877,0.66984203,93605.0,93595.0,0.04772]
[1763397036758,0.66984203,93605.0,93594.0,0.09371221]
[1763397036759,0.01655,93596.0,93594.0,0.00013221]
[1763397037628,0.01655,93596.0,93595.0,0.001]
[1763397037847,0.01655,93596.0,93594.0,0.00013221]
[1763397038060,0.01655,93596.0,93594.0,0.00113221]
[1763397038284,0.66984203,93604.0,93594.0,0.00113221]
[1763397038728,0.01600447,93620.0,93603.0,0.11365]
[1763397039158,0.66984203,93620.0,93604.0,0.09358]
[1763397039608,0.10416178,93639.0,93604.0,0.09358]
[1763397039826,0.66984203,93630.0,93620.0,0.00999999]
[1763397040267,0.66984203,93630.0,93607.0,0.02291929]
[1763397040478,0.66984203,93620.0,93610.0,0.00999999]
[1763397040710,0.66984203,93620.0,93604.0,0.001]
[1763397040917,0.66984203,93620.0,93603.0,0.04772]
[1763397040918,0.66984203,93614.0,93603.0,0.04772]
[1763397041556,0.66984203,93614.0,93596.0,0.07063704]
[1763397041802,0.66984203,93614.0,93600.0,0.00999999]
[1763397042020,0.01642,93641.0,93601.0,0.09358]
[1763397042235,0.66984203,93620.0,93613.0,0.06593]
[1763397042672,0.70281203,93640.0,93601.0,0.09358]
[1763397042879,0.01642,93641.0,93602.0,0.09358]
[1763397043100,0.66984203,93630.0,93603.0,0.0229138]
[1763397043325,0.00999999,93680.0,93610.0,0.01099999]
[1763397043528,0.00999999,93680.0,93610.0,0.00999999]
[1763397043529,0.66984203,93630.0,93610.0,0.00999999]
[1763397043737,0.66984203,93630.0,93610.0,0.10357999]
[1763397044384,0.01642,93645.0,93596.0,0.07651792]
[1763397044385,0.66984203,93620.0,93601.0,0.09358]
[1763397044605,0.01642,93645.0,93610.0,0.00999999]
[1763397044813,0.66984203,93620.0,93603.0,0.02291709]
[1763397045026,0.66984203,93640.0,93601.0,0.09358]
[1763397045233,0.66984203,93613.0,93610.0,0.001]
[1763397045437,0.66984203,93620.0,93610.0,0.001]
[1763397046072,0.46249392,93620.0,93610.0,0.001]
[1763397046282,0.66984203,93620.0,93610.0,0.001]
[1763397046500,0.66984203,93620.0,93600.0,0.00999999]
[1763397046759,0.66984203,93610.0,93600.0,0.00999999]
[1763397047017,0.66984203,93610.0,93597.0,0.09358]
[1763397047425,0.66984203,93610.0,93596.0,0.04772]
[1763397048059,0.66984203,93610.0,93600.0,0.001]
[1763397048312,0.66984203,93610.0,93596.0,0.04772]
[1763397048518,0.10416178,93629.0,93597.0,0.09358]
[1763397048725,0.66984203,93610.0,93597.0,0.09358]
[1763397049560,0.03297,93634.0,93597.0,0.09358]
[1763397049761,0.66984203,93620.0,93600.0,0.00999999]
[1763397049964,0.66984203,93610.0,93600.0,0.00999999]
[1763397050791,0.66984203,93610.0,93599.0,0.09358]
[1763397051002,0.66984203,93610.0,93600.0,0.001]
[1763397051415,0.66984203,93610.0,93596.0,0.04772]
[1763397051623,0.66984203,93610.0,93600.0,0.001]
[1763397053145,0.66984203,93610.0,93596.0,0.04772]
[1763397053347,0.66984203,93610.0,93600.0,0.001]
[1763397054175,0.66984203,93610.0,93596.0,0.04772]
[1763397054367,0.00017,93597.0,93596.0,0.001]
[1763397054561,0.66984203,93606.0,93596.0,0.001]
[1763397054781,0.12381587,93605.0,93577.0,0.02300759]
[1763397054903,0.01965409,93604.0,93589.0,0.04772]
[1763397055108,0.66984203,93606.0,93589.0,0.04772]
[1763397055711,0.66984203,93606.0,93570.0,0.03905905]
[1763397055712,0.03297,93595.0,93570.0,0.03905905]
[1763397055960,0.03297,93595.0,93571.0,0.02302002]
[1763397056157,0.03297,93595.0,93570.0,0.0004]
[1763397056158,0.04983,93595.0,93572.0,0.02302002]
[1763397056363,0.04983,93595.0,93573.0,0.02302002]
[1763397056703,0.06949759,93595.0,93570.0,0.0004]
[1763397058014,0.01966759,93595.0,93589.0,0.04772]
[1763397058239,0.0196588,93595.0,93589.0,0.04772]
[1763397058463,0.05658067,93651.0,93610.0,0.00999999]
[1763397058674,0.01966338,93644.0,93639.0,0.04772]
[1763397058886,0.66984203,93650.0,93639.0,0.04772]
[1763397059094,0.01967114,93649.0,93639.0,0.04772]
[1763397059307,0.10416178,93662.0,93640.0,0.0230122]
[1763397059534,0.66984203,93650.0,93641.0,0.0230122]
[1763397059752,0.66984203,93650.0,93642.0,0.0230122]